{"text_format":"1","workbook":"xlsx","n_sheets":6,"sheets":["表紙","自己採点シート","学習自己点検シート ","単位修得状況確認表（共通教育科目，一般学生）","単位修得状況確認表（専門教育科目）","累積グラフ"],"not_rendered":{"charts":7,"images":3,"macros":1,"external_links":0,"defined_names":36,"comments":0,"pivot_tables":0},"unopened":[],"bounds":{"document_bytes":16777216,"sheet_cells":100000,"rows_first":2000,"rows_last":500,"rows_between":2000,"halvings":0,"cell_chars":16384,"cell_head_chars":4096},"cells_cut":0,"cells_raw":0,"read":"whole","date_system":"1900"}

{"sheet":"表紙","index":0,"n_rows":35,"n_cols":2,"rows_kept":35,"cut":false,"hidden":false,"merged":[[33,2,33,3],[34,3,34,4]]}
[]
[]
[]
[]
[]
[]
[]
[]
[]
[]
[]
[null,"鹿児島大学工学部ポートフォリオ"]
[]
[]
[]
[]
[]
[]
[]
[]
[]
[]
[]
[]
[]
[]
[]
[]
[]
[]
[]
[null,"入学年度：令和2年度"]
[null,"学科：先進工学科　情報・生体工学プログラム"]
[null,"氏名："]
[null,"学籍番号："]

{"sheet":"自己採点シート","index":1,"n_rows":22,"n_cols":21,"rows_kept":22,"cut":false,"hidden":false,"merged":[[20,2,20,5],[21,2,21,5],[14,2,14,5],[15,2,15,5],[16,2,16,5],[17,2,17,5],[18,2,18,5],[19,2,19,5],[13,2,13,5],[3,8,3,9],[9,2,9,5],[10,2,10,5],[11,2,11,5],[12,2,12,5]]}
[]
[null,"自己採点シート"]
[]
[null,null,null,null,"氏名:",{"$f":"表紙!$C$34","v":0},null,"学籍番号：",{"$f":"表紙!$D$35","v":0}]
[]
[null,"■学生のみなさんへ"]
[null,null,"今期を振り返って、以下の項目に対して自己採点をしてください。(１０点満点)"]
[]
[]
[null,null,"項目",null,null,null,"1期","2期","3期","4期","5期","6期","7期","8期","9期","10期","11期","12期","13期","14期","卒業時"]
[null,1,"工学に関しての基礎知識\n（物理・化学・数学・情報など）"]
[null,2,"各工学分野での基礎知識\n（専門科目など）"]
[null,3,"人前での発表能力"]
[null,4,"人と話し合ったり議論する能力"]
[null,5,"チームの一員として取り組める（チームワーク）能力"]
[null,6,"英語、その他外国語による表現力"]
[null,7,"読書、講習会への参加、英会話や情報処理学習など大学以外での学習による自己啓発・生涯学習能力"]
[null,8,"社会性や国際感覚が身についているか。"]
[null,9,"倫理観、責任感が身についているか。"]
[null,10]
[null,11]
[null,12]

{"sheet":"学習自己点検シート ","index":2,"n_rows":68,"n_cols":13,"rows_kept":68,"cut":false,"hidden":false,"merged":[[4,11,4,12],[7,2,7,12]]}
[]
[null,null,null,null,null,null,null,null,null,null,null,"年度","期"]
[null,"学習自己点検シート"]
[]
[null,null,null,null,null,null,null,"氏名:",{"$f":"表紙!$C$34","v":0},null,"学籍番号：",{"$f":"表紙!$D$35","v":0}]
[]
[null,"■学生のみなさんへ"]
[null,null,"学生生活全般に関して自己点検をお願いしています。今期を振り返って、以下の質問項目に答えてください。面談時、指導教員（アドバイザー）の先生方から回答に対する具体的なアドバイスを受けてください。"]
[]
[]
[null,"■回答項目"]
[]
[null,1,"今期の目標は達成できましたか。"]
[]
[]
[]
[]
[null,2,"講義への取り組みは積極的でしたか。また、積極的に取り組むことができなかった講義は具体的に何ですか。"]
[]
[]
[]
[]
[null,3,"講義毎に勉強方法がつかめていますか。"]
[]
[]
[]
[]
[null,4,"それぞれの講義の理解度は自分の目標に達していますか。理解度が足りないと感じている講義は何ですか。"]
[]
[]
[]
[]
[null,5,"平日（試験勉強以外）１日当たりの勉強時間（平均）はどのくらいですか。勉強時間が足りないと感じている講義は何ですか。"]
[]
[]
[]
[]
[null,6,"アルバイトと勉強は両立できましたか。"]
[]
[]
[]
[]
[null,7,"サークル活動と勉強は両立できましたか。"]
[]
[]
[]
[]
[null,8,"卒業後の進路についてどのように考えていますか。"]
[]
[]
[]
[]
[null,9,"その他、アドバイスが必要なことはありますか。"]
[]
[]
[]
[]
[null,10]
[]
[]
[]
[]
[null,11]
[]
[]
[]
[]
[null,12]

{"sheet":"単位修得状況確認表（共通教育科目，一般学生）","index":3,"n_rows":37,"n_cols":48,"rows_kept":37,"cut":false,"hidden":false,"merged":[[26,36,26,37],[26,14,26,15],[26,16,26,17],[26,18,26,19],[26,20,26,21],[26,22,26,23],[26,24,26,25],[26,26,26,27],[26,28,26,29],[26,30,26,31],[26,32,26,33],[26,34,26,35],[25,28,25,29],[25,30,25,31],[25,32,25,33],[25,34,25,35],[25,36,25,37],[26,0,26,5],[26,6,26,7],[26,8,26,9],[26,10,26,11],[26,12,26,13],[25,26,25,27],[25,0,25,5],[25,6,25,7],[25,8,25,9],[25,10,25,11],[25,12,25,13],[25,14,25,15],[25,16,25,17],[25,18,25,19],[25,20,25,21],[25,22,25,23],[25,24,25,25],[24,36,24,37],[24,14,24,15],[24,16,24,17],[24,18,24,19],[24,20,24,21],[24,22,24,23],[24,24,24,25],[24,26,24,27],[24,28,24,29],[24,30,24,31],[24,32,24,33],[24,34,24,35],[24,12,24,13],[15,0,20,0],[15,1,17,3],[16,4,17,4],[18,1,19,3],[22,1,22,9],[24,0,24,5],[24,6,24,7],[24,8,24,9],[24,10,24,11],[21,0,21,5],[6,0,14,0],[6,1,11,3],[9,4,10,4],[12,1,13,3],[4,18,4,19],[4,10,4,11],[4,12,4,13],[18,39,19,39],[1,0,1,40],[2,0,5,5],[2,6,2,37],[2,38,5,38],[2,39,5,39],[2,40,5,40],[3,6,3,9],[3,10,3,13],[3,14,3,17],[3,18,3,21],[3,22,3,25],[3,26,3,29],[3,30,3,33],[4,30,4,31],[4,32,4,33],[3,34,3,37],[4,6,4,7],[4,8,4,9],[4,14,4,15],[4,16,4,17],[4,34,4,35],[4,36,4,37],[4,20,4,21],[4,22,4,23],[4,24,4,25],[4,26,4,27],[4,28,4,29]]}
[{"$f":"'単位修得状況確認表（共通教育科目，一般学生）'!G7:V14","v":{"$error":"#VALUE!"}},null,null,null,null,null,null,null,null,null,null,null,null,null,null,null,null,null,null,null,null,null,null,null,null,null,null,null,null,null,null,null,null,null,null,null,null,null,null,null,null,null,null,null,null,null,null,"A"]
["単位修得状況確認表（共通教育科目：一般学生）",null,null,null,null,null,null,null,null,null,null,null,null,null,null,null,null,null,null,null,null,null,null,null,null,null,null,null,null,null,null,null,null,null,null,null,null,null,null,null,null,null,null,null,null,null,null,"B"]
["　",null,null,null,null,null,"取得単位数およびGP",null,null,null,null,null,null,null,null,null,null,null,null,null,null,null,null,null,null,null,null,null,null,null,null,null,null,null,null,null,null,null,"取得単位数","要修得\n単位数","累積GP",null,null,"当該期修得単位の入力要領（共通教育科目）",null,null,null,"C"]
[null,null,null,null,null,null,"　年次",null,null,null,"　年次",null,null,null,"　年次",null,null,null,"　年次",null,null,null,"　年次",null,null,null,"　年次",null,null,null,"　年次",null,null,null,"　年次",null,null,null,null,null,null,null,null,"１．黄色枠に各科目(英語の場合は修得した合計",null,null,null,"D"]
[null,null,null,null,null,null,"１期",null,"２期",null,"３期",null,"４期",null,"５期",null,"６期",null,"７期",null,"８期",null,"９期",null,"10期",null,"11期",null,"12期",null,"13期",null,"14期",null,"15期",null,"16期",null,null,null,null,null,null,"　　単位数)の修得単位数を記入する。",null,null,null,"F"]
[null,null,null,null,null,null,"単位","合計GP","単位","合計GP","単位","合計GP","単位","合計GP","単位","合計GP","単位","合計GP","単位","合計GP","単位","合計GP","単位","合計GP","単位","合計GP","単位","合計GP","単位","合計GP","単位","合計GP","単位","合計GP","単位","合計GP","単位","合計GP",null,null,null,null,null,"２．オレンジ枠に修得した必修科目・選択必修",null,null,null,"P"]
["必修科目","初年次\n教育科目",null,null,"初年次セミナーⅠ",null,null,null,null,null,null,null,null,null,null,null,null,null,null,null,null,null,null,null,null,null,null,null,null,null,null,null,null,null,null,null,null,null,{"$f":"SUM(G7,I7,K7,M7,O7,Q7,S7,U7,W7,Y7,AA7,AC7,AE7,AG7,AI7,AK7)","v":0},2,null,null,null,"　　科目それぞれの合計単位数を記入する。"]
[null,null,null,null,"初年次セミナーⅡ",null,null,null,null,null,null,null,null,null,null,null,null,null,null,null,null,null,null,null,null,null,null,null,null,null,null,null,null,null,null,null,null,null,0,2,null,null,null,"３．灰色枠に受講科目の合計GP（単位数×GP）"]
[null,null,null,null,"大学と地域",null,null,null,null,null,null,null,null,null,null,null,null,null,null,null,null,null,null,null,null,null,null,null,null,null,null,null,null,null,null,null,null,null,0,2,null,null,null,"　　を計算し、その値を入力する。"]
[null,null,null,null,"体育・健康","理論",null,null,null,null,null,null,null,null,null,null,null,null,null,null,null,null,null,null,null,null,null,null,null,null,null,null,null,null,null,null,null,null,0,1,null,null,null,"　（評価とGPの関係：A=4,B=3,C=2,D=1,F=0,Pは"]
[null,null,null,null,null,"実習",null,null,null,null,null,null,null,null,null,null,null,null,null,null,null,null,null,null,null,null,null,null,null,null,null,null,null,null,null,null,null,null,0,1,null,null,null,"　　GPの該当外なので合計GP欄は空欄とする。）"]
[null,null,null,null,"情報活用",null,null,null,null,null,null,null,null,null,null,null,null,null,null,null,null,null,null,null,null,null,null,null,null,null,null,null,null,null,null,null,null,null,0,2,null,null,null,"４．取得単位数を要修得単位数と比較して、"]
[null,"ｸﾞﾛｰﾊﾞﾙ\n教育科目",null,null,"英語",null,null,null,null,null,null,null,null,null,null,null,null,null,null,null,null,null,null,null,null,null,null,null,null,null,null,null,null,null,null,null,null,null,0,6,null,null,null,"　　単位取得状況を把握する。"]
[null,null,null,null,"異文化理解",null,null,null,null,null,null,null,null,null,null,null,null,null,null,null,null,null,null,null,null,null,null,null,null,null,null,null,null,null,null,null,null,null,0,2]
[null,"必修科目　計",null,null,null,null,null,{"$f":"SUM(H7:H14)","v":0},null,{"$f":"SUM(J7:J14)","v":0},null,{"$f":"SUM(L7:L14)","v":0},null,{"$f":"SUM(N7:N14)","v":0},null,{"$f":"SUM(P7:P14)","v":0},null,{"$f":"SUM(R7:R14)","v":0},null,{"$f":"SUM(T7:T14)","v":0},null,{"$f":"SUM(V7:V14)","v":0},null,{"$f":"SUM(X7:X14)","v":0},null,{"$f":"SUM(Z7:Z14)","v":0},null,{"$f":"SUM(AB7:AB14)","v":0},null,{"$f":"SUM(AD7:AD14)","v":0},null,{"$f":"SUM(AF7:AF14)","v":0},null,{"$f":"SUM(AH7:AH14)","v":0},null,{"$f":"SUM(AJ7:AJ14)","v":0},null,{"$f":"SUM(AL7:AL14)","v":0},0,18,{"$f":"SUM(H15,J15,L15,N15,P15,R15,T15,V15,X15,Z15,AB15,AD15,AF15,AH15,AJ15,AL15)","v":0},null,null,"※期をまたがって開講される科目は、成績の出"]
["選択必修科目","教養教育\n科目",null,null,"人文・社会科学分野","選択科目",null,null,null,null,null,null,null,null,null,null,null,null,null,null,null,null,null,null,null,null,null,null,null,null,null,null,null,null,null,null,null,null,0,4,null,null,null,"　された期に記入する。例えば通年の場合、後"]
[null,null,null,null,"自然科学分野","選択科目",null,null,null,null,null,null,null,null,null,null,null,null,null,null,null,null,null,null,null,null,null,null,null,null,null,null,null,null,null,null,null,null,0,2,null,null,null,"　期に記入する。"]
[null,null,null,null,null,"基礎教育入門科目",null,null,null,null,null,null,null,null,null,null,null,null,null,null,null,null,null,null,null,null,null,null,null,null,null,null,null,null,null,null,null,null,0,2,null,null,null,"※本表最下部の表の入力方法について"]
[null,"教養活用\n科目",null,null,"統合Ⅰ（課題発見）",null,null,null,null,null,null,null,null,null,null,null,null,null,null,null,null,null,null,null,null,null,null,null,null,null,null,null,null,null,null,null,null,null,0,4,null,null,null,"　・P評価の単位数は、当該期①の欄に、"]
[null,null,null,null,"統合Ⅱ（課題解決）",null,null,null,null,null,null,null,null,null,null,null,null,null,null,null,null,null,null,null,null,null,null,null,null,null,null,null,null,null,null,null,null,null,0,null,null,null,null,"　・F評価の単位数は、当該期②の欄に、"]
[null,"選択必修科目　計",null,null,null,null,null,{"$f":"SUM(H16:H20)","v":0},null,{"$f":"SUM(J16:J20)","v":0},null,{"$f":"SUM(L16:L20)","v":0},null,{"$f":"SUM(N16:N20)","v":0},null,{"$f":"SUM(P16:P20)","v":0},null,{"$f":"SUM(R16:R20)","v":0},null,{"$f":"SUM(T16:T20)","v":0},null,{"$f":"SUM(V16:V20)","v":0},null,{"$f":"SUM(X16:X20)","v":0},null,{"$f":"SUM(Z16:Z20)","v":0},null,{"$f":"SUM(AB16:AB20)","v":0},null,{"$f":"SUM(AD16:AD20)","v":0},null,{"$f":"SUM(AF16:AF20)","v":0},null,{"$f":"SUM(AH16:AH20)","v":0},null,{"$f":"SUM(AJ16:AJ20)","v":0},null,{"$f":"SUM(AL16:AL20)","v":0},0,12,{"$f":"SUM(H21,J21,L21,N21,P21,R21,T21,V21,X21,Z21,AB21,AD21,AF21,AH21,AJ21,AL21)","v":0},null,null,"　・評価F科目の再履修での修得単位数は当該"]
["全科目合計",null,null,null,null,null,{"$f":"G15+G21","v":0},0,0,0,0,0,0,0,0,0,0,0,0,0,0,0,0,0,0,0,0,0,0,0,0,0,0,0,0,0,0,0,0,30,{"$f":"SUM(H22,J22,L22,N22,P22,R22,T22,V22,X22,Z22,AB22,AD22,AF22,AH22,AJ22,AL22)","v":0},null,null,"　　期③の欄に入力する。なお、②には再履修"]
["※","「期を増やす」欄により学年を４年間増やすことが可。",null,null,null,null,null,null,null,null,null,null,null,null,null,null,null,null,null,null,null,null,null,null,null,null,null,null,null,null,null,null,null,null,null,null,null,null,null,null,null,null,null,"　　の科目は含まない。"]
[null,null,null,null,null,null,null,null,null,null,null,null,null,null,null,null,null,null,null,null,null,null,null,null,null,null,null,null,null,null,null,null,null,null,null,null,null,null,null,null,null,null,null,"※評価Fの科目を再履修して単位を修得した場合"]
["①【共通教育科目】評価Pの単位数",null,null,null,null,null,null,null,null,null,null,null,null,null,null,null,null,null,null,null,null,null,null,null,null,null,null,null,null,null,null,null,null,null,null,null,null,null,{"$f":"SUM(G25:AL25)","v":0},null,null,null,null,"　の入力方法について"]
["②【共通教育科目】不合格（評価F）の単位数",null,null,null,null,null,null,null,null,null,null,null,null,null,null,null,null,null,null,null,null,null,null,null,null,null,null,null,null,null,null,null,null,null,null,null,null,null,{"$f":"SUM(G26:AL26)","v":0},null,null,null,null,"　上記1～3の手順で入力する。"]
["③【共通教育科目】評価F科目の再履修での修得単位数",null,null,null,null,null,null,null,null,null,null,null,null,null,null,null,null,null,null,null,null,null,null,null,null,null,null,null,null,null,null,null,null,null,null,null,null,null,{"$f":"SUM(G27:AL27)","v":0},null,null,null,null,"※既修得単位（D以上）の科目を再履修して単位を"]
[null,null,null,null,null,null,null,null,null,null,null,null,null,null,null,null,null,null,null,null,null,null,null,null,null,null,null,null,null,null,null,null,null,null,null,null,null,null,null,null,null,null,null,"　修得した場合の入力方法について"]
[null,null,null,null,null,null,null,null,null,null,null,null,null,null,null,null,null,null,null,null,null,null,null,null,null,null,null,null,null,null,null,null,null,null,null,null,null,null,null,null,null,null,null,"　今期の分を上記1～3の手順で入力した後、"]
[null,null,null,null,null,null,null,null,null,null,null,null,null,null,null,null,null,null,null,null,null,null,null,null,null,null,null,null,null,null,null,null,null,null,null,null,null,null,null,null,null,null,null,"  過去の評価（黄色枠）と合計GP（灰色枠）"]
[null,null,null,null,null,null,null,null,null,null,null,null,null,null,null,null,null,null,null,null,null,null,null,null,null,null,null,null,null,null,null,null,null,null,null,null,null,null,null,null,null,null,null,"　を削除し、過去のオレンジ枠の合計修得単位数"]
[null,null,null,null,null,null,null,null,null,null,null,null,null,null,null,null,null,null,null,null,null,null,null,null,null,null,null,null,null,null,null,null,null,null,null,null,null,null,null,null,null,null,null,"　から今期再履修で修得した単位数を引いた値を"]
[null,null,null,null,null,null,null,null,null,null,null,null,null,null,null,null,null,null,null,null,null,null,null,null,null,null,null,null,null,null,null,null,null,null,null,null,null,null,null,null,null,null,null,"　過去のオレンジ枠の合計修得単位数に再入力する。"]
[]
[null,null,null,null,null,null,null,null,null,null,null,null,null,null,null,null,null,null,null,null,null,null,null,null,null,null,null,null,null,null,null,null,null,null,null,null,null,null,null,null,null,null,null,"（補足説明）"]
[null,null,null,null,null,null,null,null,null,null,null,null,null,null,null,null,null,null,null,null,null,null,null,null,null,null,null,null,null,null,null,null,null,null,null,null,null,null,null,null,null,null,null,"※留年した場合は「期を増やす」欄で列を増"]
[null,null,null,null,null,null,null,null,null,null,null,null,null,null,null,null,null,null,null,null,null,null,null,null,null,null,null,null,null,null,null,null,null,null,null,null,null,null,null,null,null,null,null,"　やす。"]

{"sheet":"単位修得状況確認表（専門教育科目）","index":4,"n_rows":86,"n_cols":52,"rows_kept":86,"cut":false,"hidden":false,"merged":[[1,0,1,41],[2,0,2,1],[2,2,5,2],[2,3,5,3],[2,4,5,4],[2,7,2,38],[2,39,5,39],[2,40,5,40],[2,41,5,41],[3,7,3,10],[3,35,3,38],[4,7,4,8],[4,9,4,10],[4,11,4,12],[4,13,4,14],[4,15,4,16],[4,17,4,18],[4,19,4,20],[4,21,4,22],[4,23,4,24],[3,11,3,14],[3,15,3,18],[3,19,3,22],[3,23,3,26],[3,27,3,30],[3,31,3,34],[4,37,4,38],[5,0,5,1],[6,0,13,0],[6,1,8,1],[6,40,8,40],[6,47,50,47],[10,1,13,1],[10,40,21,40],[4,25,4,26],[4,27,4,28],[4,29,4,30],[4,31,4,32],[4,33,4,34],[4,35,4,36],[51,1,51,5],[53,0,77,0],[53,1,76,1],[53,40,76,40],[53,47,76,47],[74,51,75,51],[77,1,77,5],[11,51,12,51],[14,0,23,0],[14,1,21,1],[18,51,19,51],[23,1,23,5],[25,0,51,0],[25,1,27,1],[25,40,27,40],[29,1,50,1],[29,40,50,40],[83,17,83,18],[83,19,83,20],[83,21,83,22],[83,23,83,24],[79,0,79,6],[80,0,80,6],[81,1,81,11],[81,39,81,40],[83,0,83,6],[83,7,83,8],[83,9,83,10],[83,11,83,12],[83,13,83,14],[83,15,83,16],[83,29,83,30],[83,31,83,32],[83,33,83,34],[83,35,83,36],[83,37,83,38],[83,25,83,26],[83,27,83,28],[84,33,84,34],[84,35,84,36],[84,37,84,38],[84,15,84,16],[84,17,84,18],[84,19,84,20],[84,21,84,22],[84,23,84,24],[84,25,84,26],[85,0,85,6],[85,7,85,8],[85,9,85,10],[85,11,85,12],[85,13,85,14],[85,15,85,16],[84,27,84,28],[84,29,84,30],[84,31,84,32],[85,29,85,30],[85,31,85,32],[84,0,84,6],[84,7,84,8],[84,9,84,10],[84,11,84,12],[84,13,84,14],[85,33,85,34],[85,35,85,36],[85,37,85,38],[85,17,85,18],[85,19,85,20],[85,21,85,22],[85,23,85,24],[85,25,85,26],[85,27,85,28]]}
[null,null,null,null,null,null,null,null,null,null,null,null,null,null,null,null,null,null,null,null,null,null,null,null,null,null,null,null,null,null,null,null,null,null,null,null,null,null,null,null,null,null,null,null,null,null,null,null,"A"]
["単位修得状況確認表（専門教育科目）",null,null,null,null,null,null,null,null,null,null,null,null,null,null,null,null,null,null,null,null,null,null,null,null,null,null,null,null,null,null,null,null,null,null,null,null,null,null,null,null,null,null,null,"受講科目の単位入力要領（専門教育科目）",null,null,null,"B"]
["区",null,"必修","選択必修","選択","授","単","履修科目の評価およびGP",null,null,null,null,null,null,null,null,null,null,null,null,null,null,null,null,null,null,null,null,null,null,null,null,null,null,null,null,null,null,null,"取得単位数","要修得\n単位数","累積GP",null,null,"STEP１",null,null,null,"C"]
[null," ",null,null,null,"業"," ","　年次",null,null,null,"　年次",null,null,null,"　年次",null,null,null,"　年次",null,null,null,"　年次",null,null,null,"　年次",null,null,null,"　年次",null,null,null,"　年次",null,null,null,null,null,null,null,null,"当該期に受講した科目の単位を区分ごとに以下の手順で",null,null,null,"D"]
[null,null,null,null,null,"科",null,"１期",null,"２期",null,"３期",null,"４期",null,"５期",null,"６期",null,"７期",null,"８期",null,"９期",null,"10期",null,"11期",null,"12期",null,"13期",null,"14期",null,"15期",null,"16期",null,null,null,null,null,null,"入力し、要修得単位数と比較して単位取得状況を把握",null,null,null,"F"]
["分",null,null,null,null,"目","位","評価","合計GP","評価","合計GP","評価","合計GP","評価","合計GP","評価","合計GP","評価","合計GP","評価","合計GP","評価","合計GP","評価","合計GP","評価","合計GP","評価","合計GP","評価","合計GP","評価","合計GP","評価","合計GP","評価","合計GP","評価","合計GP",null,null,null,null,null,"する。",null,null,null,"P"]
["学部共通科目","工学基礎教育強化科目","〇",null,null,"微分積分学Ⅰ",2,null,null,null,null,null,null,null,null,null,null,null,null,null,null,null,null,null,null,null,null,null,null,null,null,null,null,null,null,null,null,null,null,null,6,null,null,null,null,null,null,"必修科目",250421000101,{"$f":"F7","v":"微分積分学Ⅰ"}]
[null,null,"〇",null,null,"線形代数学Ⅰ",2,null,null,null,null,null,null,null,null,null,null,null,null,null,null,null,null,null,null,null,null,null,null,null,null,null,null,null,null,null,null,null,null,null,null,null,null,null,"１．黄色枠に受講科目の評価（A,B,C,D,F,P）を入力する。",null,null,null,250421000110,"線形代数学Ⅰ"]
[null,null,"〇",null,null,"物理学基礎Ⅰ",2,null,null,null,null,null,null,null,null,null,null,null,null,null,null,null,null,null,null,null,null,null,null,null,null,null,null,null,null,null,null,null,null,null,null,null,null,null,"２．オレンジ枠に合計修得単位数を入力する。",null,null,null,250152199102,"物理学基礎Ⅰ","2件以上ヒット","技術者倫理 250227000170\n技術者倫理（機） 250152199102"]
[null,"工学概論系科目","〇",null,null,"工学概論",2,null,null,null,null,null,null,null,null,null,null,null,null,null,null,null,null,null,null,null,null,null,null,null,null,null,null,null,null,null,null,null,null,null,2,null,null,null,"３．灰色枠に受講科目の合計GP（単位数×GP）を計算し、",null,null,null,250421000101,"工学概論"]
[null,"分野融合科目",null,"〇",null,"環境保全と防災",2,null,null,null,null,null,null,null,null,null,null,null,null,null,null,null,null,null,null,null,null,null,null,null,null,null,null,null,null,null,null,null,null,null,4,null,null,null,"    その値を入力する。",null,null,null,250421000110,"環境保全と防災"]
[null,null,null,"〇",null,"科学技術と生産",2,null,null,null,null,null,null,null,null,null,null,null,null,null,null,null,null,null,null,null,null,null,null,null,null,null,null,null,null,null,null,null,null,null,null,null,null,null,"　（評価とGPの関係：A=4,B=3,C=2,D=1,F=0,PはGPの該当",null,null,null,250152199102,"科学技術と生産","2件以上ヒット","技術者倫理 250227000170\n技術者倫理（機） 250152199102"]
[null,null,null,"〇",null,"工学のための地球科学",2,null,null,null,null,null,null,null,null,null,null,null,null,null,null,null,null,null,null,null,null,null,null,null,null,null,null,null,null,null,null,null,null,null,null,null,null,null,"　　外なので合計GP欄は空欄とする。）",null,null,null,250052100101,"工学のための地球科学"]
[null,null,null,"〇",null,"環境生体センシング技術",2,null,null,null,null,null,null,null,null,null,null,null,null,null,null,null,null,null,null,null,null,null,null,null,null,null,null,null,null,null,null,null,null,null,null,null,null,null,"４．修得単位数を要修得単位数と比較して単位取得状況",null,null,null,250152111102,"環境生体センシング技術"]
["学科共通科目","分野融合科目",null,"〇",null,"計算機ハードウェア技術",2,null,null,null,null,null,null,null,null,null,null,null,null,null,null,null,null,null,null,null,null,null,null,null,null,null,null,null,null,null,null,null,null,null,null,null,null,null,"    を把握する。",null,null,null,250421000101,"計算機ハードウェア技術"]
[null,null,null,"〇",null,"エネルギー変換工学",2,null,null,null,null,null,null,null,null,null,null,null,null,null,null,null,null,null,null,null,null,null,null,null,null,null,null,null,null,null,null,null,null,null,null,null,null,null,null,null,null,null,250421000110,"エネルギー変換工学"]
[null,null,null,"〇",null,"工学材料の微小構造と性質",2,null,null,null,null,null,null,null,null,null,null,null,null,null,null,null,null,null,null,null,null,null,null,null,null,null,null,null,null,null,null,null,null,null,null,null,null,null,"※期をまたがって開講される科目は、成績の出された期に",null,null,null,250152199102,"工学材料の微小構造と性質","2件以上ヒット","技術者倫理 250227000170\n技術者倫理（機） 250152199102"]
[null,null,null,"〇",null,"先端計測学",2,null,null,null,null,null,null,null,null,null,null,null,null,null,null,null,null,null,null,null,null,null,null,null,null,null,null,null,null,null,null,null,null,null,null,null,null,null,"  記入する。例えば通年の場合、後期に記入する。",null,null,null,250421000110,"先端計測学"]
[null,null,null,"〇",null,"生命工学",2,null,null,null,null,null,null,null,null,null,null,null,null,null,null,null,null,null,null,null,null,null,null,null,null,null,null,null,null,null,null,null,null,null,null,null,null,null,"※本表最下部の表の入力方法について",null,null,null,250152199102,"生命工学","2件以上ヒット","技術者倫理 250227000170\n技術者倫理（機） 250152199102"]
[null,null,null,"〇",null,"核エネルギーと放射線の\n基礎とその利用",2,null,null,null,null,null,null,null,null,null,null,null,null,null,null,null,null,null,null,null,null,null,null,null,null,null,null,null,null,null,null,null,null,null,null,null,null,null,"　・P評価の単位数は当該期①の欄に、",null,null,null,250052100101,"核エネルギーと放射線の\n基礎とその利用"]
[null,null,null,"〇",null,"化学技術と工学",2,null,null,null,null,null,null,null,null,null,null,null,null,null,null,null,null,null,null,null,null,null,null,null,null,null,null,null,null,null,null,null,null,null,null,null,null,null,"　・F評価の単位数は当該期②の欄に、",null,null,null,250152111102,"化学技術と工学"]
[null,null,null,"〇",null,"工学分野実験・演習",1,null,null,null,null,null,null,null,null,null,null,null,null,null,null,null,null,null,null,null,null,null,null,null,null,null,null,null,null,null,null,null,null,null,null,null,null,null,"　・評価F科目の再履修での修得単位数は当該期③の欄に",null,null,null,250152111102,"工学分野実験・演習"]
[null,"工学基盤\n情報科目","〇",null,null,"数理・データサイエンス基礎",2,null,null,null,null,null,null,null,null,null,null,null,null,null,null,null,null,null,null,null,null,null,null,null,null,null,null,null,null,null,null,null,null,null,2,null,null,null,"　　入力する。なお、②には再履修の科目は含まない。"]
[null,"合計",null,null,null,null,33,null,{"$f":"SUM(I7:I23)","v":0},null,{"$f":"SUM(K7:K23)","v":0},null,{"$f":"SUM(M7:M23)","v":0},null,{"$f":"SUM(O7:O23)","v":0},null,{"$f":"SUM(Q7:Q23)","v":0},null,{"$f":"SUM(S7:S23)","v":0},null,{"$f":"SUM(U7:U23)","v":0},null,{"$f":"SUM(W7:W23)","v":0},null,{"$f":"SUM(Y7:Y23)","v":0},null,{"$f":"SUM(AA7:AA23)","v":0},null,{"$f":"SUM(AC7:AC23)","v":0},null,{"$f":"SUM(AE7:AE23)","v":0},null,{"$f":"SUM(AG7:AG23)","v":0},null,{"$f":"SUM(AI7:AI23)","v":0},null,{"$f":"SUM(AK7:AK23)","v":0},null,{"$f":"SUM(AM7:AM23)","v":0},{"$f":"SUM(H24,J24,L24,N24,P24,R24,T24,V24,X24,Z24,AB24,AD24,AF24,AH24,AJ24,AL24)","v":0},14,{"$f":"SUM(I24,K24,M24,O24,Q24,S24,U24,W24,Y24,AA24,AC24,AE24,AG24,AI24,AK24,AM24)","v":0},null,null,"※評価Fの科目を再履修して単位を修得した場合の入力方",null,null,null,250421000130,{"$f":"B24","v":"合計"}]
[null,null,null,null,null,null,null,null,null,null,null,null,null,null,null,null,null,null,null,null,null,null,null,null,null,null,null,null,null,null,null,null,null,null,null,null,null,null,null,null,null,null,null,null,"  法について"]
["情報・生体工学プログラム科目","工学基礎教育強化科目","○",null,null,"微分積分学Ⅱ",2,null,null,null,null,null,null,null,null,null,null,null,null,null,null,null,null,null,null,null,null,null,null,null,null,null,null,null,null,null,null,null,null,null,6,null,null,null,"  上記１～３の手順で入力する。",null,null,null,250421000101,{"$f":"F26","v":"微分積分学Ⅱ"}]
[null,null,"○",null,null,"線形代数学Ⅱ",2,null,null,null,null,null,null,null,null,null,null,null,null,null,null,null,null,null,null,null,null,null,null,null,null,null,null,null,null,null,null,null,null,null,null,null,null,null,"※既修得単位（D以上）の科目を再履修して単位を",null,null,null,250421000110,"線形代数学Ⅱ"]
[null,null,"○",null,null,"物理学基礎Ⅱ",2,null,null,null,null,null,null,null,null,null,null,null,null,null,null,null,null,null,null,null,null,null,null,null,null,null,null,null,null,null,null,null,null,null,null,null,null,null,"　修得した場合の入力方法について",null,null,null,250152199102,"物理学基礎Ⅱ","2件以上ヒット","技術者倫理 250227000170\n技術者倫理（機） 250152199102"]
[null,"就業力育成科目","○",null,null,"工学倫理",2,null,null,null,null,null,null,null,null,null,null,null,null,null,null,null,null,null,null,null,null,null,null,null,null,null,null,null,null,null,null,null,null,null,2,null,null,null,"　今期の分を上記1～3の手順で入力した後、"]
[null,"分野基盤科目 ","○",null,null,"確率統計序論",1,null,null,null,null,null,null,null,null,null,null,null,null,null,null,null,null,null,null,null,null,null,null,null,null,null,null,null,null,null,null,null,null,null,43,null,null,null,"  過去の評価（黄色枠）と合計GP（灰色枠）",null,null,null,259752111301,"確率統計序論"]
[null,null,"○",null,null,"プログラミング序論演習",2,null,null,null,null,null,null,null,null,null,null,null,null,null,null,null,null,null,null,null,null,null,null,null,null,null,null,null,null,null,null,null,null,null,null,null,null,null,"　を削除し、過去のオレンジ枠の合計修得単位数",null,null,null,250152111112,{"$f":"F31","v":"プログラミング序論演習"}]
[null,null,"○",null,null,"応用数学Ⅰ",2,null,null,null,null,null,null,null,null,null,null,null,null,null,null,null,null,null,null,null,null,null,null,null,null,null,null,null,null,null,null,null,null,null,null,null,null,null,"　から今期再履修で修得した単位数を引いた値を",null,null,null,259752111402,"応用数学Ⅰ"]
[null,null,"○",null,null,"応用数学Ⅰ演習",1,null,null,null,null,null,null,null,null,null,null,null,null,null,null,null,null,null,null,null,null,null,null,null,null,null,null,null,null,null,null,null,null,null,null,null,null,null,"　過去のオレンジ枠の合計修得単位数に再入力する。"]
[null,null,"○",null,null,"プログラミング言語Ⅰ及び演習",3,null,null,null,null,null,null,null,null,null,null,null,null,null,null,null,null,null,null,null,null,null,null,null,null,null,null,null,null,null,null,null,null,null,null,null,null,null,null,null,null,null,250421000260,{"$f":"F34","v":"プログラミング言語Ⅰ及び演習"}]
[null,null,"○",null,null,"応用数学Ⅱ",2]
[null,null,"○",null,null,"応用数学Ⅱ演習",1,null,null,null,null,null,null,null,null,null,null,null,null,null,null,null,null,null,null,null,null,null,null,null,null,null,null,null,null,null,null,null,null,null,null,null,null,null,"STEP２"]
[null,null,"○",null,null,"離散数学と論理回路",2,null,null,null,null,null,null,null,null,null,null,null,null,null,null,null,null,null,null,null,null,null,null,null,null,null,null,null,null,null,null,null,null,null,null,null,null,null,"累積GPAの値を学業成績証明書と一致するかチェックする。"]
[null,null,"○",null,null,"電気回路及び演習",2,null,null,null,null,null,null,null,null,null,null,null,null,null,null,null,null,null,null,null,null,null,null,null,null,null,null,null,null,null,null,null,null,null,null,null,null,null,"区分ごとの単位修得状況の入力が終了した後に、シート",null,null,null,250152113102,{"$f":"F38","v":"電気回路及び演習"}]
[null,null,"○",null,null,"情報・生体工学実験Ⅰ",1,null,null,null,null,null,null,null,null,null,null,null,null,null,null,null,null,null,null,null,null,null,null,null,null,null,null,null,null,null,null,null,null,null,null,null,null,null,"右下赤枠の「累積GPA」の値が、学業成績証明書に記載されて"]
[null,null,"○",null,null,"エンジニアリテラシー",1,null,null,null,null,null,null,null,null,null,null,null,null,null,null,null,null,null,null,null,null,null,null,null,null,null,null,null,null,null,null,null,null,null,null,null,null,null,"いる累積GPAの値と一致しているかチェックし、一致"]
[null,null,"○",null,null,"プログラミング言語II及び演習",2,null,null,null,null,null,null,null,null,null,null,null,null,null,null,null,null,null,null,null,null,null,null,null,null,null,null,null,null,null,null,null,null,null,null,null,null,null,"していない場合はSTEP１に戻り、入力値に間違いが",null,null,null,250152111112,"プログラミング言語II及び演習"]
[null,null,"○",null,null,"情報理論",2,null,null,null,null,null,null,null,null,null,null,null,null,null,null,null,null,null,null,null,null,null,null,null,null,null,null,null,null,null,null,null,null,null,null,null,null,null,"ないか見直し、正しく入力する。",null,null,null,259752111402,"情報理論"]
[null,null,"○",null,null,"電磁気学I及び演習",2]
[null,null,"○",null,null,"情報・生体工学実験Ⅱ",1,null,null,null,null,null,null,null,null,null,null,null,null,null,null,null,null,null,null,null,null,null,null,null,null,null,null,null,null,null,null,null,null,null,null,null,null,null,"（補足説明）",null,null,null,250421000260,"情報・生体工学実験Ⅱ"]
[null,null,"○",null,null,"情報セキュリティ",2,null,null,null,null,null,null,null,null,null,null,null,null,null,null,null,null,null,null,null,null,null,null,null,null,null,null,null,null,null,null,null,null,null,null,null,null,null,"※留年した場合は「期を増やす」欄で列を増やす。"]
[null,null,"○",null,null,"生体インターフェイス",2,null,null,null,null,null,null,null,null,null,null,null,null,null,null,null,null,null,null,null,null,null,null,null,null,null,null,null,null,null,null,null,null,null,null,null,null,null,"※評価Pの科目については、GPおよびGPAの計算に含ま"]
[null,null,"○",null,null,"工学英語Ⅰ",2,null,null,null,null,null,null,null,null,null,null,null,null,null,null,null,null,null,null,null,null,null,null,null,null,null,null,null,null,null,null,null,null,null,null,null,null,null,"　ない。しかしながら、進級・卒業要件の累積単位数"]
[null,null,"○",null,null,"情報・生体工学実験Ⅲ",2,null,null,null,null,null,null,null,null,null,null,null,null,null,null,null,null,null,null,null,null,null,null,null,null,null,null,null,null,null,null,null,null,null,null,null,null,null,"　には含まれることがあるので、標準履修課程表で確認",null,null,null,250152113102,"情報・生体工学実験Ⅲ"]
[null,null,"○",null,null,"エンジニアリングデザイン",2,null,null,null,null,null,null,null,null,null,null,null,null,null,null,null,null,null,null,null,null,null,null,null,null,null,null,null,null,null,null,null,null,null,null,null,null,null,"　すること。（インターンシップ等）"]
[null,null,"○",null,null,"工学英語Ⅱ",2,null,null,null,null,null,null,null,null,null,null,null,null,null,null,null,null,null,null,null,null,null,null,null,null,null,null,null,null,null,null,null,null,null,null,null,null,null,"※随意科目については、GPおよびGPAの計算に含まれない。"]
[null,null,"○",null,null,"卒業研究",6,null,null,null,null,null,null,null,null,null,null,null,null,null,null,null,null,null,null,null,null,null,null,null,null,null,null,null,null,null,null,null,null,null,null,null,null,null,"　また、進級・卒業要件にも含まれない。"]
[null,"合計",null,null,null,null,61,null,{"$f":"SUM(I26:I51)","v":0},null,{"$f":"SUM(K26:K51)","v":0},null,{"$f":"SUM(M26:M51)","v":0},null,{"$f":"SUM(O26:O51)","v":0},null,{"$f":"SUM(Q26:Q51)","v":0},null,{"$f":"SUM(S26:S51)","v":0},null,{"$f":"SUM(U26:U51)","v":0},null,{"$f":"SUM(W26:W51)","v":0},null,{"$f":"SUM(Y26:Y51)","v":0},null,{"$f":"SUM(AA26:AA51)","v":0},null,{"$f":"SUM(AC26:AC51)","v":0},null,{"$f":"SUM(AE26:AE51)","v":0},null,{"$f":"SUM(AG26:AG51)","v":0},null,{"$f":"SUM(AI26:AI51)","v":0},null,{"$f":"SUM(AK26:AK51)","v":0},null,{"$f":"SUM(AM26:AM51)","v":0},{"$f":"SUM(H52,J52,L52,N52,P52,R52,T52,V52,X52,Z52,AB52,AD52,AF52,AH52,AJ52,AL52)","v":0},51,{"$f":"SUM(I52,K52,M52,O52,Q52,S52,U52,W52,Y52,AA52,AC52,AE52,AG52,AI52,AK52,AM52)","v":0}]
[]
["情報・生体工学プログラム科目","分野専門科目 ",null,"○",null,"計算機工学",2,null,null,null,null,null,null,null,null,null,null,null,null,null,null,null,null,null,null,null,null,null,null,null,null,null,null,null,null,null,null,null,null,null,29,null,null,null,null,null,null,null,250421000140,{"$f":"F54","v":"計算機工学"}]
[null,null,null,"○",null,"アルゴリズムとデータ構造",2,null,null,null,null,null,null,null,null,null,null,null,null,null,null,null,null,null,null,null,null,null,null,null,null,null,null,null,null,null,null,null,null,null,null,null,null,null,null,null,null,null,250421000150,"アルゴリズムとデータ構造"]
[null,null,null,"○",null,"電気電子回路",2,null,null,null,null,null,null,null,null,null,null,null,null,null,null,null,null,null,null,null,null,null,null,null,null,null,null,null,null,null,null,null,null,null,null,null,null,null,null,null,null,null,250421000160,"電気電子回路"]
[null,null,null,"○",null,"プログラミング言語Ⅲ及び演習",2,null,null,null,null,null,null,null,null,null,null,null,null,null,null,null,null,null,null,null,null,null,null,null,null,null,null,null,null,null,null,null,null,null,null,null,null,null,null,null,null,null,250421000170,"プログラミング言語Ⅲ及び演習"]
[null,null,null,"○",null,"数値解析プログラミング",2,null,null,null,null,null,null,null,null,null,null,null,null,null,null,null,null,null,null,null,null,null,null,null,null,null,null,null,null,null,null,null,null,null,null,null,null,null,null,null,null,null,250421000180,"数値解析プログラミング"]
[null,null,null,"○",null,"機械学習のための数学",2,null,null,null,null,null,null,null,null,null,null,null,null,null,null,null,null,null,null,null,null,null,null,null,null,null,null,null,null,null,null,null,null,null,null,null,null,null,null,null,null,null,250062100101,"機械学習のための数学"]
[null,null,null,"○",null,"人工知能",2,null,null,null,null,null,null,null,null,null,null,null,null,null,null,null,null,null,null,null,null,null,null,null,null,null,null,null,null,null,null,null,null,null,null,null,null,null,null,null,null,null,250421000190,"人工知能"]
[null,null,null,"○",null,"オペレーティングシステム論",2,null,null,null,null,null,null,null,null,null,null,null,null,null,null,null,null,null,null,null,null,null,null,null,null,null,null,null,null,null,null,null,null,null,null,null,null,null,null,null,null,null,250421000200,"オペレーティングシステム論"]
[null,null,null,"○",null,"ソフトウェア工学Ⅰ",2,null,null,null,null,null,null,null,null,null,null,null,null,null,null,null,null,null,null,null,null,null,null,null,null,null,null,null,null,null,null,null,null,null,null,null,null,null,null,null,null,null,250421000210,"ソフトウェア工学Ⅰ"]
[null,null,null,"○",null,"電気磁気学Ⅱ",2,null,null,null,null,null,null,null,null,null,null,null,null,null,null,null,null,null,null,null,null,null,null,null,null,null,null,null,null,null,null,null,null,null,null,null,null,null,null,null,null,null,250421000220,"電気磁気学Ⅱ"]
[null,null,null,"○",null,"生体機構学",2,null,null,null,null,null,null,null,null,null,null,null,null,null,null,null,null,null,null,null,null,null,null,null,null,null,null,null,null,null,null,null,null,null,null,null,null,null,null,null,null,null,null,"生体機構学"]
[null,null,null,"○",null,"プログラミング言語Ⅳ及び演習",2]
[null,null,null,"○",null,"計算機ネットワーク",2]
[null,null,null,"○",null,"ソフトウェア工学Ⅱ",2,null,null,null,null,null,null,null,null,null,null,null,null,null,null,null,null,null,null,null,null,null,null,null,null,null,null,null,null,null,null,null,null,null,null,null,null,null,null,null,null,null,250421000140,{"$f":"F67","v":"ソフトウェア工学Ⅱ"}]
[null,null,null,"○",null,"メディア処理",2,null,null,null,null,null,null,null,null,null,null,null,null,null,null,null,null,null,null,null,null,null,null,null,null,null,null,null,null,null,null,null,null,null,null,null,null,null,null,null,null,null,250421000150,"メディア処理"]
[null,null,null,"○",null,"画像情報処理",2,null,null,null,null,null,null,null,null,null,null,null,null,null,null,null,null,null,null,null,null,null,null,null,null,null,null,null,null,null,null,null,null,null,null,null,null,null,null,null,null,null,250421000160,"画像情報処理"]
[null,null,null,"○",null,"シミュレーション",2,null,null,null,null,null,null,null,null,null,null,null,null,null,null,null,null,null,null,null,null,null,null,null,null,null,null,null,null,null,null,null,null,null,null,null,null,null,null,null,null,null,250421000170,"シミュレーション"]
[null,null,null,"○",null,"生体情報学",2,null,null,null,null,null,null,null,null,null,null,null,null,null,null,null,null,null,null,null,null,null,null,null,null,null,null,null,null,null,null,null,null,null,null,null,null,null,null,null,null,null,250421000180,"生体情報学"]
[null,null,null,"○",null,"電気化学",2,null,null,null,null,null,null,null,null,null,null,null,null,null,null,null,null,null,null,null,null,null,null,null,null,null,null,null,null,null,null,null,null,null,null,null,null,null,null,null,null,null,250062100101,"電気化学"]
[null,null,null,"○",null,"データベース",2,null,null,null,null,null,null,null,null,null,null,null,null,null,null,null,null,null,null,null,null,null,null,null,null,null,null,null,null,null,null,null,null,null,null,null,null,null,null,null,null,null,250421000190,"データベース"]
[null,null,null,"○",null,"工場見学",1]
[null,null,null,"○",null,"インターンシップ",1,null,null,null,null,null,null,null,null,null,null,null,null,null,null,null,null,null,null,null,null,null,null,null,null,null,null,null,null,null,null,null,null,null,null,null,null,null,null,null,null,null,250223010031,{"$f":"F75","v":"インターンシップ"},"2件以上ヒット","材料力学 250223010031\n材料力学（機） 259752113101"]
[null,null,null,"○",null,"情報・生体工学特別講義Ⅰ",1,null,null,null,null,null,null,null,null,null,null,null,null,null,null,null,null,null,null,null,null,null,null,null,null,null,null,null,null,null,null,null,null,null,null,null,null,null,null,null,null,null,259752111108,"情報・生体工学特別講義Ⅰ"]
[null,null,null,"○",null,"情報・生体工学特別講義Ⅱ",1,null,null,null,null,null,null,null,null,null,null,null,null,null,null,null,null,null,null,null,null,null,null,null,null,null,null,null,null,null,null,null,null,null,null,null,null,null,null,null,null,null,259752114104,"情報・生体工学特別講義Ⅱ"]
[null,"合計",null,null,null,null,44,null,{"$f":"SUM(I54:I77)","v":0},null,{"$f":"SUM(K54:K77)","v":0},null,{"$f":"SUM(M54:M77)","v":0},null,{"$f":"SUM(O54:O77)","v":0},null,{"$f":"SUM(Q54:Q77)","v":0},null,{"$f":"SUM(S54:S77)","v":0},null,{"$f":"SUM(U54:U77)","v":0},null,{"$f":"SUM(W54:W77)","v":0},null,{"$f":"SUM(Y54:Y77)","v":0},null,{"$f":"SUM(AA54:AA77)","v":0},null,{"$f":"SUM(AC54:AC77)","v":0},null,{"$f":"SUM(AE54:AE77)","v":0},null,{"$f":"SUM(AG54:AG77)","v":0},null,{"$f":"SUM(AI54:AI77)","v":0},null,{"$f":"SUM(AK54:AK77)","v":0},null,{"$f":"SUM(AM54:AM77)","v":0},{"$f":"SUM(H78,J78,L78,N78,P78,R78,T78,V78,X78,Z78,AB78,AD78,AF78,AH78,AJ78,AL78)","v":0},29,{"$f":"SUM(I78,K78,M78,O78,Q78,S78,U78,W78,Y78,AA78,AC78,AE78,AG78,AI78,AK78,AM78)","v":0}]
[]
["専門教育科目合計（単位数とGP）",null,null,null,null,null,null,{"$f":"SUM(H24,H52,H78)","v":0},{"$f":"SUM(I24,I52,I78)","v":0},0,0,0,0,0,0,0,0,0,0,0,0,0,0,0,0,0,0,0,0,0,0,0,0,0,0,0,0,0,0,{"$f":"SUM(H80,J80,L80,N80,P80,R80,T80,V80,X80,Z80,AB80,AD80,AF80,AH80,AJ80,AL80)","v":0},94,{"$f":"SUM(I80,K80,M80,O80,Q80,S80,U80,W80,Y80,AA80,AC80,AE80,AG80,AI80,AK80,AM80)","v":0}]
["(共通＋専門)教育科目合計（単位数とGP）",null,null,null,null,null,null,{"$f":"'単位修得状況確認表（共通教育科目，一般学生）'!G22+H80","v":0},{"$f":"'単位修得状況確認表（共通教育科目，一般学生）'!H22+I80","v":0},{"$f":"'単位修得状況確認表（共通教育科目，一般学生）'!I22+J80","v":0},{"$f":"'単位修得状況確認表（共通教育科目，一般学生）'!J22+K80","v":0},{"$f":"'単位修得状況確認表（共通教育科目，一般学生）'!K22+L80","v":0},{"$f":"'単位修得状況確認表（共通教育科目，一般学生）'!L22+M80","v":0},{"$f":"'単位修得状況確認表（共通教育科目，一般学生）'!M22+N80","v":0},{"$f":"'単位修得状況確認表（共通教育科目，一般学生）'!N22+O80","v":0},{"$f":"'単位修得状況確認表（共通教育科目，一般学生）'!O22+P80","v":0},{"$f":"'単位修得状況確認表（共通教育科目，一般学生）'!P22+Q80","v":0},{"$f":"'単位修得状況確認表（共通教育科目，一般学生）'!Q22+R80","v":0},{"$f":"'単位修得状況確認表（共通教育科目，一般学生）'!R22+S80","v":0},{"$f":"'単位修得状況確認表（共通教育科目，一般学生）'!S22+T80","v":0},{"$f":"'単位修得状況確認表（共通教育科目，一般学生）'!T22+U80","v":0},{"$f":"'単位修得状況確認表（共通教育科目，一般学生）'!U22+V80","v":0},{"$f":"'単位修得状況確認表（共通教育科目，一般学生）'!V22+W80","v":0},{"$f":"'単位修得状況確認表（共通教育科目，一般学生）'!W22+X80","v":0},{"$f":"'単位修得状況確認表（共通教育科目，一般学生）'!X22+Y80","v":0},{"$f":"'単位修得状況確認表（共通教育科目，一般学生）'!Y22+Z80","v":0},{"$f":"'単位修得状況確認表（共通教育科目，一般学生）'!Z22+AA80","v":0},{"$f":"'単位修得状況確認表（共通教育科目，一般学生）'!AA22+AB80","v":0},{"$f":"'単位修得状況確認表（共通教育科目，一般学生）'!AB22+AC80","v":0},{"$f":"'単位修得状況確認表（共通教育科目，一般学生）'!AC22+AD80","v":0},{"$f":"'単位修得状況確認表（共通教育科目，一般学生）'!AD22+AE80","v":0},{"$f":"'単位修得状況確認表（共通教育科目，一般学生）'!AE22+AF80","v":0},{"$f":"'単位修得状況確認表（共通教育科目，一般学生）'!AF22+AG80","v":0},{"$f":"'単位修得状況確認表（共通教育科目，一般学生）'!AG22+AH80","v":0},{"$f":"'単位修得状況確認表（共通教育科目，一般学生）'!AH22+AI80","v":0},{"$f":"'単位修得状況確認表（共通教育科目，一般学生）'!AI22+AJ80","v":0},{"$f":"'単位修得状況確認表（共通教育科目，一般学生）'!AJ22+AK80","v":0},{"$f":"'単位修得状況確認表（共通教育科目，一般学生）'!AK22+AL80","v":0},{"$f":"'単位修得状況確認表（共通教育科目，一般学生）'!AL22+AM80","v":0},{"$f":"SUM(H81,J81,L81,N81,P81,R81,T81,V81,X81,Z81,AB81,AD81,AF81,AH81,AJ81,AL81)","v":0},124,{"$f":"SUM(I81,K81,M81,O81,Q81,S81,U81,W81,Y81,AA81,AC81,AE81,AG81,AI81,AK81,AM81)","v":0}]
["※","「期を増やす」欄により学年を４年間増やすことが可。",null,null,null,null,null,null,null,null,null,null,null,null,null,null,null,null,null,null,null,null,null,null,null,null,null,null,null,null,null,null,null,null,null,null,null,null,null,"累積GPA",null,{"$f":"IF(AN81-AN84>0,AP81/(AN81-AN84-'単位修得状況確認表（共通教育科目，一般学生）'!AM25+AN85+'単位修得状況確認表（共通教育科目，一般学生）'!AM26-AN86-'単位修得状況確認表（共通教育科目，一般学生）'!AM27),\"\")","v":""}]
[]
["①【専門教育科目】評価Pの単位数",null,null,null,null,null,null,null,null,null,null,null,null,null,null,null,null,null,null,null,null,null,null,null,null,null,null,null,null,null,null,null,null,null,null,null,null,null,null,{"$f":"SUM(H84:AM84)","v":0}]
["②【専門教育科目】不合格（評価F）の単位数",null,null,null,null,null,null,null,null,null,null,null,null,null,null,null,null,null,null,null,null,null,null,null,null,null,null,null,null,null,null,null,null,null,null,null,null,null,null,{"$f":"SUM(H85:AM85)","v":0}]
["③【専門教育科目】評価F科目の再履修での修得単位数",null,null,null,null,null,null,null,null,null,null,null,null,null,null,null,null,null,null,null,null,null,null,null,null,null,null,null,null,null,null,null,null,null,null,null,null,null,null,{"$f":"SUM(H86:AM86)","v":0}]

{"sheet":"累積グラフ","index":5,"n_rows":226,"n_cols":7,"rows_kept":226,"cut":false,"hidden":false,"merged":[[3,2,3,3],[3,4,3,5],[42,2,42,3],[42,4,42,5],[81,2,81,3]]}
[]
[null,"共通教育科目（必修科目）"]
[]
[null,null,"初年次教育科目",null,"ｸﾞﾛｰﾊﾞﾙ教育科目"]
[null,null,"取得単位数","累積取得単位数","取得単位数","累積取得単位数"]
[null,"1期終了時",{"$f":"SUM('単位修得状況確認表（共通教育科目，一般学生）'!G$7:G$12)","v":0},{"$f":"SUM(C$6:C6)","v":0},{"$f":"SUM('単位修得状況確認表（共通教育科目，一般学生）'!G$13:G$14)","v":0},{"$f":"SUM(E$6:E6)","v":0}]
[null,"2期終了時",{"$f":"SUM('単位修得状況確認表（共通教育科目，一般学生）'!I$7:I$12)","v":0},{"$f":"SUM(C$6:C7)","v":0},{"$f":"SUM('単位修得状況確認表（共通教育科目，一般学生）'!I$13:I$14)","v":0},{"$f":"SUM(E$6:E7)","v":0}]
[null,"3期終了時",{"$f":"SUM('単位修得状況確認表（共通教育科目，一般学生）'!K$7:K$12)","v":0},{"$f":"SUM(C$6:C8)","v":0},{"$f":"SUM('単位修得状況確認表（共通教育科目，一般学生）'!K$13:K$14)","v":0},{"$f":"SUM(E$6:E8)","v":0}]
[null,"4期終了時",{"$f":"SUM('単位修得状況確認表（共通教育科目，一般学生）'!M$7:M$12)","v":0},{"$f":"SUM(C$6:C9)","v":0},{"$f":"SUM('単位修得状況確認表（共通教育科目，一般学生）'!M$13:M$14)","v":0},{"$f":"SUM(E$6:E9)","v":0}]
[null,"5期終了時",{"$f":"SUM('単位修得状況確認表（共通教育科目，一般学生）'!O$7:O$12)","v":0},{"$f":"SUM(C$6:C10)","v":0},{"$f":"SUM('単位修得状況確認表（共通教育科目，一般学生）'!O$13:O$14)","v":0},{"$f":"SUM(E$6:E10)","v":0}]
[null,"6期終了時",{"$f":"SUM('単位修得状況確認表（共通教育科目，一般学生）'!Q$7:Q$12)","v":0},{"$f":"SUM(C$6:C11)","v":0},{"$f":"SUM('単位修得状況確認表（共通教育科目，一般学生）'!Q$13:Q$14)","v":0},{"$f":"SUM(E$6:E11)","v":0}]
[null,"7期終了時",{"$f":"SUM('単位修得状況確認表（共通教育科目，一般学生）'!S$7:S$12)","v":0},{"$f":"SUM(C$6:C12)","v":0},{"$f":"SUM('単位修得状況確認表（共通教育科目，一般学生）'!S$13:S$14)","v":0},{"$f":"SUM(E$6:E12)","v":0}]
[null,"8期終了時",{"$f":"SUM('単位修得状況確認表（共通教育科目，一般学生）'!U$7:U$12)","v":0},{"$f":"SUM(C$6:C13)","v":0},{"$f":"SUM('単位修得状況確認表（共通教育科目，一般学生）'!U$13:U$14)","v":0},{"$f":"SUM(E$6:E13)","v":0}]
[null,"9期終了時",{"$f":"SUM('単位修得状況確認表（共通教育科目，一般学生）'!W$7:W$12)","v":0},{"$f":"IF(SUM($C184:$C$191)=0,\"\",SUM(C$6:C14))","v":""},{"$f":"SUM('単位修得状況確認表（共通教育科目，一般学生）'!W$13:W$14)","v":0},{"$f":"IF(SUM($C184:$C$191)=0,\"\",SUM(E$6:E14))","v":""}]
[null,"10期終了時",{"$f":"SUM('単位修得状況確認表（共通教育科目，一般学生）'!Y$7:Y$12)","v":0},{"$f":"IF(SUM($C185:$C$191)=0,\"\",SUM(C$6:C15))","v":""},{"$f":"SUM('単位修得状況確認表（共通教育科目，一般学生）'!Y$13:Y$14)","v":0},{"$f":"IF(SUM($C185:$C$191)=0,\"\",SUM(E$6:E15))","v":""}]
[null,"11期終了時",{"$f":"SUM('単位修得状況確認表（共通教育科目，一般学生）'!AA$7:AA$12)","v":0},{"$f":"IF(SUM($C186:$C$191)=0,\"\",SUM(C$6:C16))","v":""},{"$f":"SUM('単位修得状況確認表（共通教育科目，一般学生）'!AA$13:AA$14)","v":0},{"$f":"IF(SUM($C186:$C$191)=0,\"\",SUM(E$6:E16))","v":""}]
[null,"12期終了時",{"$f":"SUM('単位修得状況確認表（共通教育科目，一般学生）'!AC$7:AC$12)","v":0},{"$f":"IF(SUM($C187:$C$191)=0,\"\",SUM(C$6:C17))","v":""},{"$f":"SUM('単位修得状況確認表（共通教育科目，一般学生）'!AC$13:AC$14)","v":0},{"$f":"IF(SUM($C187:$C$191)=0,\"\",SUM(E$6:E17))","v":""}]
[null,"13期終了時",{"$f":"SUM('単位修得状況確認表（共通教育科目，一般学生）'!AE$7:AE$12)","v":0},{"$f":"IF(SUM($C188:$C$191)=0,\"\",SUM(C$6:C18))","v":""},{"$f":"SUM('単位修得状況確認表（共通教育科目，一般学生）'!AE$13:AE$14)","v":0},{"$f":"IF(SUM($C188:$C$191)=0,\"\",SUM(E$6:E18))","v":""}]
[null,"14期終了時",{"$f":"SUM('単位修得状況確認表（共通教育科目，一般学生）'!AG$7:AG$12)","v":0},{"$f":"IF(SUM($C189:$C$191)=0,\"\",SUM(C$6:C19))","v":""},{"$f":"SUM('単位修得状況確認表（共通教育科目，一般学生）'!AG$13:AG$14)","v":0},{"$f":"IF(SUM($C189:$C$191)=0,\"\",SUM(E$6:E19))","v":""}]
[null,"15期終了時",{"$f":"SUM('単位修得状況確認表（共通教育科目，一般学生）'!AI$7:AI$12)","v":0},{"$f":"IF(SUM($C190:$C$191)=0,\"\",SUM(C$6:C20))","v":""},{"$f":"SUM('単位修得状況確認表（共通教育科目，一般学生）'!AI$13:AI$14)","v":0},{"$f":"IF(SUM($C190:$C$191)=0,\"\",SUM(E$6:E20))","v":""}]
[null,"16期終了時",{"$f":"SUM('単位修得状況確認表（共通教育科目，一般学生）'!AK$7:AK$12)","v":0},{"$f":"IF(SUM($C191:$C$191)=0,\"\",SUM(C$6:C21))","v":""},{"$f":"SUM('単位修得状況確認表（共通教育科目，一般学生）'!AK$13:AK$14)","v":0},{"$f":"IF(SUM($C191:$C$191)=0,\"\",SUM(E$6:E21))","v":""}]
[]
[]
[]
[]
[]
[]
[]
[]
[]
[]
[]
[]
[]
[]
[]
[]
[]
[]
[]
[null,"共通教育科目（選択必修科目）"]
[]
[null,null,"教養教育科目",null,"教養活用科目"]
[null,null,"取得単位数","累積取得単位数","取得単位数","累積取得単位数"]
[null,"1期終了時",{"$f":"SUM('単位修得状況確認表（共通教育科目，一般学生）'!G$16:G$18)","v":0},{"$f":"SUM(C$45:C45)","v":0},{"$f":"SUM('単位修得状況確認表（共通教育科目，一般学生）'!G$19:G$20)","v":0},{"$f":"SUM(E$45:E45)","v":0}]
[null,"2期終了時",{"$f":"SUM('単位修得状況確認表（共通教育科目，一般学生）'!I$16:I$18)","v":0},{"$f":"SUM(C$45:C46)","v":0},{"$f":"SUM('単位修得状況確認表（共通教育科目，一般学生）'!I$19:I$20)","v":0},{"$f":"SUM(E$45:E46)","v":0}]
[null,"3期終了時",{"$f":"SUM('単位修得状況確認表（共通教育科目，一般学生）'!K$16:K$18)","v":0},{"$f":"SUM(C$45:C47)","v":0},{"$f":"SUM('単位修得状況確認表（共通教育科目，一般学生）'!K$19:K$20)","v":0},{"$f":"SUM(E$45:E47)","v":0}]
[null,"4期終了時",{"$f":"SUM('単位修得状況確認表（共通教育科目，一般学生）'!M$16:M$18)","v":0},{"$f":"SUM(C$45:C48)","v":0},{"$f":"SUM('単位修得状況確認表（共通教育科目，一般学生）'!M$19:M$20)","v":0},{"$f":"SUM(E$45:E48)","v":0}]
[null,"5期終了時",{"$f":"SUM('単位修得状況確認表（共通教育科目，一般学生）'!O$16:O$18)","v":0},{"$f":"SUM(C$45:C49)","v":0},{"$f":"SUM('単位修得状況確認表（共通教育科目，一般学生）'!O$19:O$20)","v":0},{"$f":"SUM(E$45:E49)","v":0}]
[null,"6期終了時",{"$f":"SUM('単位修得状況確認表（共通教育科目，一般学生）'!Q$16:Q$18)","v":0},{"$f":"SUM(C$45:C50)","v":0},{"$f":"SUM('単位修得状況確認表（共通教育科目，一般学生）'!Q$19:Q$20)","v":0},{"$f":"SUM(E$45:E50)","v":0}]
[null,"7期終了時",{"$f":"SUM('単位修得状況確認表（共通教育科目，一般学生）'!S$16:S$18)","v":0},{"$f":"SUM(C$45:C51)","v":0},{"$f":"SUM('単位修得状況確認表（共通教育科目，一般学生）'!S$19:S$20)","v":0},{"$f":"SUM(E$45:E51)","v":0}]
[null,"8期終了時",{"$f":"SUM('単位修得状況確認表（共通教育科目，一般学生）'!U$16:U$18)","v":0},{"$f":"SUM(C$45:C52)","v":0},{"$f":"SUM('単位修得状況確認表（共通教育科目，一般学生）'!U$19:U$20)","v":0},{"$f":"SUM(E$45:E52)","v":0}]
[null,"9期終了時",{"$f":"SUM('単位修得状況確認表（共通教育科目，一般学生）'!W$16:W$18)","v":0},{"$f":"IF(SUM($C184:$C$191)=0,\"\",SUM(C$45:C53))","v":""},{"$f":"SUM('単位修得状況確認表（共通教育科目，一般学生）'!W$19:W$20)","v":0},{"$f":"IF(SUM($C184:$C$191)=0,\"\",SUM(E$45:E53))","v":""}]
[null,"10期終了時",{"$f":"SUM('単位修得状況確認表（共通教育科目，一般学生）'!Y$16:Y$18)","v":0},{"$f":"IF(SUM($C185:$C$191)=0,\"\",SUM(C$45:C54))","v":""},{"$f":"SUM('単位修得状況確認表（共通教育科目，一般学生）'!Y$19:Y$20)","v":0},{"$f":"IF(SUM($C185:$C$191)=0,\"\",SUM(E$45:E54))","v":""}]
[null,"11期終了時",{"$f":"SUM('単位修得状況確認表（共通教育科目，一般学生）'!AA$16:AA$18)","v":0},{"$f":"IF(SUM($C186:$C$191)=0,\"\",SUM(C$45:C55))","v":""},{"$f":"SUM('単位修得状況確認表（共通教育科目，一般学生）'!AA$19:AA$20)","v":0},{"$f":"IF(SUM($C186:$C$191)=0,\"\",SUM(E$45:E55))","v":""}]
[null,"12期終了時",{"$f":"SUM('単位修得状況確認表（共通教育科目，一般学生）'!AC$16:AC$18)","v":0},{"$f":"IF(SUM($C187:$C$191)=0,\"\",SUM(C$45:C56))","v":""},{"$f":"SUM('単位修得状況確認表（共通教育科目，一般学生）'!AC$19:AC$20)","v":0},{"$f":"IF(SUM($C187:$C$191)=0,\"\",SUM(E$45:E56))","v":""}]
[null,"13期終了時",{"$f":"SUM('単位修得状況確認表（共通教育科目，一般学生）'!AE$16:AE$18)","v":0},{"$f":"IF(SUM($C188:$C$191)=0,\"\",SUM(C$45:C57))","v":""},{"$f":"SUM('単位修得状況確認表（共通教育科目，一般学生）'!AE$19:AE$20)","v":0},{"$f":"IF(SUM($C188:$C$191)=0,\"\",SUM(E$45:E57))","v":""}]
[null,"14期終了時",{"$f":"SUM('単位修得状況確認表（共通教育科目，一般学生）'!AG$16:AG$18)","v":0},{"$f":"IF(SUM($C189:$C$191)=0,\"\",SUM(C$45:C58))","v":""},{"$f":"SUM('単位修得状況確認表（共通教育科目，一般学生）'!AG$19:AG$20)","v":0},{"$f":"IF(SUM($C189:$C$191)=0,\"\",SUM(E$45:E58))","v":""}]
[null,"15期終了時",{"$f":"SUM('単位修得状況確認表（共通教育科目，一般学生）'!AI$16:AI$18)","v":0},{"$f":"IF(SUM($C190:$C$191)=0,\"\",SUM(C$45:C59))","v":""},{"$f":"SUM('単位修得状況確認表（共通教育科目，一般学生）'!AI$19:AI$20)","v":0},{"$f":"IF(SUM($C190:$C$191)=0,\"\",SUM(E$45:E59))","v":""}]
[null,"16期終了時",{"$f":"SUM('単位修得状況確認表（共通教育科目，一般学生）'!AK$16:AK$18)","v":0},{"$f":"IF(SUM($C191:$C$191)=0,\"\",SUM(C$45:C60))","v":""},{"$f":"SUM('単位修得状況確認表（共通教育科目，一般学生）'!AK$19:AK$20)","v":0},{"$f":"IF(SUM($C191:$C$191)=0,\"\",SUM(E$45:E60))","v":""}]
[]
[]
[]
[]
[]
[]
[]
[]
[]
[]
[]
[]
[]
[]
[]
[]
[]
[]
[]
[null,"専門教育科目（共通科目）"]
[]
[null,null,"必修科目"]
[null,null,"取得単位数","累積取得単位数"]
[null,"1期終了時",{"$f":"'単位修得状況確認表（専門教育科目）'!H$24","v":0},{"$f":"SUM(C$84:C84)","v":0}]
[null,"2期終了時",{"$f":"'単位修得状況確認表（専門教育科目）'!J$24","v":0},{"$f":"SUM(C$84:C85)","v":0}]
[null,"3期終了時",{"$f":"'単位修得状況確認表（専門教育科目）'!L$24","v":0},{"$f":"SUM(C$84:C86)","v":0}]
[null,"4期終了時",{"$f":"'単位修得状況確認表（専門教育科目）'!N$24","v":0},{"$f":"SUM(C$84:C87)","v":0}]
[null,"5期終了時",{"$f":"'単位修得状況確認表（専門教育科目）'!P$24","v":0},{"$f":"SUM(C$84:C88)","v":0}]
[null,"6期終了時",{"$f":"'単位修得状況確認表（専門教育科目）'!R$24","v":0},{"$f":"SUM(C$84:C89)","v":0}]
[null,"7期終了時",{"$f":"'単位修得状況確認表（専門教育科目）'!T$24","v":0},{"$f":"SUM(C$84:C90)","v":0}]
[null,"8期終了時",{"$f":"'単位修得状況確認表（専門教育科目）'!V$24","v":0},{"$f":"SUM(C$84:C91)","v":0}]
[null,"9期終了時",{"$f":"'単位修得状況確認表（専門教育科目）'!X$24","v":0},{"$f":"IF(SUM($C184:$C$191)=0,\"\",SUM(C$84:C92))","v":""}]
[null,"10期終了時",{"$f":"'単位修得状況確認表（専門教育科目）'!Z$24","v":0},{"$f":"IF(SUM($C185:$C$191)=0,\"\",SUM(C$84:C93))","v":""}]
[null,"11期終了時",{"$f":"'単位修得状況確認表（専門教育科目）'!AB$24","v":0},{"$f":"IF(SUM($C186:$C$191)=0,\"\",SUM(C$84:C94))","v":""}]
[null,"12期終了時",{"$f":"'単位修得状況確認表（専門教育科目）'!AD$24","v":0},{"$f":"IF(SUM($C187:$C$191)=0,\"\",SUM(C$84:C95))","v":""}]
[null,"13期終了時",{"$f":"'単位修得状況確認表（専門教育科目）'!AF$24","v":0},{"$f":"IF(SUM($C188:$C$191)=0,\"\",SUM(C$84:C96))","v":""}]
[null,"14期終了時",{"$f":"'単位修得状況確認表（専門教育科目）'!AH$24","v":0},{"$f":"IF(SUM($C189:$C$191)=0,\"\",SUM(C$84:C97))","v":""}]
[null,"15期終了時",{"$f":"'単位修得状況確認表（専門教育科目）'!AJ$24","v":0},{"$f":"IF(SUM($C190:$C$191)=0,\"\",SUM(C$84:C98))","v":""}]
[null,"16期終了時",{"$f":"'単位修得状況確認表（専門教育科目）'!AL$24","v":0},{"$f":"IF(SUM($C191:$C$191)=0,\"\",SUM(C$84:C99))","v":""}]
[]
[]
[]
[]
[]
[]
[]
[null,"専門教育科目（プログラム科目：必修）"]
[]
[null,null,"取得単位数","累積取得単位数"]
[null,"1期終了時",{"$f":"'単位修得状況確認表（専門教育科目）'!H$52","v":0},{"$f":"SUM(C$110:C110)","v":0}]
[null,"2期終了時",{"$f":"'単位修得状況確認表（専門教育科目）'!J$52","v":0},{"$f":"SUM(C$110:C111)","v":0}]
[null,"3期終了時",{"$f":"'単位修得状況確認表（専門教育科目）'!L$52","v":0},{"$f":"SUM(C$110:C112)","v":0}]
[null,"4期終了時",{"$f":"'単位修得状況確認表（専門教育科目）'!N$52","v":0},{"$f":"SUM(C$110:C113)","v":0}]
[null,"5期終了時",{"$f":"'単位修得状況確認表（専門教育科目）'!P$52","v":0},{"$f":"SUM(C$110:C114)","v":0}]
[null,"6期終了時",{"$f":"'単位修得状況確認表（専門教育科目）'!R$52","v":0},{"$f":"SUM(C$110:C115)","v":0}]
[null,"7期終了時",{"$f":"'単位修得状況確認表（専門教育科目）'!T$52","v":0},{"$f":"SUM(C$110:C116)","v":0}]
[null,"8期終了時",{"$f":"'単位修得状況確認表（専門教育科目）'!V$52","v":0},{"$f":"SUM(C$110:C117)","v":0}]
[null,"9期終了時",{"$f":"'単位修得状況確認表（専門教育科目）'!X$52","v":0},{"$f":"IF(SUM($C184:$C$191)=0,\"\",SUM(C$110:C118))","v":""}]
[null,"10期終了時",{"$f":"'単位修得状況確認表（専門教育科目）'!Z$52","v":0},{"$f":"IF(SUM($C185:$C$191)=0,\"\",SUM(C$110:C119))","v":""}]
[null,"11期終了時",{"$f":"'単位修得状況確認表（専門教育科目）'!AB$52","v":0},{"$f":"IF(SUM($C186:$C$191)=0,\"\",SUM(C$110:C120))","v":""}]
[null,"12期終了時",{"$f":"'単位修得状況確認表（専門教育科目）'!AD$52","v":0},{"$f":"IF(SUM($C187:$C$191)=0,\"\",SUM(C$110:C121))","v":""}]
[null,"13期終了時",{"$f":"'単位修得状況確認表（専門教育科目）'!AF$52","v":0},{"$f":"IF(SUM($C188:$C$191)=0,\"\",SUM(C$110:C122))","v":""}]
[null,"14期終了時",{"$f":"'単位修得状況確認表（専門教育科目）'!AH$52","v":0},{"$f":"IF(SUM($C189:$C$191)=0,\"\",SUM(C$110:C123))","v":""}]
[null,"15期終了時",{"$f":"'単位修得状況確認表（専門教育科目）'!AJ$52","v":0},{"$f":"IF(SUM($C190:$C$191)=0,\"\",SUM(C$110:C124))","v":""}]
[null,"16期終了時",{"$f":"'単位修得状況確認表（専門教育科目）'!AL$52","v":0},{"$f":"IF(SUM($C$191:$C191)=0,\"\",SUM(C$110:C125))","v":""}]
[]
[]
[]
[]
[]
[]
[]
[]
[]
[]
[]
[]
[]
[]
[null,"専門教育科目（プログラム科目：選択必修）"]
[]
[null,null,"取得単位数","累積取得単位数"]
[null,"1期終了時",{"$f":"'単位修得状況確認表（専門教育科目）'!H$78","v":0},{"$f":"SUM(C143:C$148)","v":0}]
[null,"2期終了時",{"$f":"'単位修得状況確認表（専門教育科目）'!J$78","v":0},{"$f":"SUM(C144:C$148)","v":0}]
[null,"3期終了時",{"$f":"'単位修得状況確認表（専門教育科目）'!L$78","v":0},{"$f":"SUM(C145:C$148)","v":0}]
[null,"4期終了時",{"$f":"'単位修得状況確認表（専門教育科目）'!N$78","v":0},{"$f":"SUM(C146:C$148)","v":0}]
[null,"5期終了時",{"$f":"'単位修得状況確認表（専門教育科目）'!P$78","v":0},{"$f":"SUM(C147:C$148)","v":0}]
[null,"6期終了時",{"$f":"'単位修得状況確認表（専門教育科目）'!R$78","v":0},{"$f":"SUM(C$148:C148)","v":0}]
[null,"7期終了時",{"$f":"'単位修得状況確認表（専門教育科目）'!T$78","v":0},{"$f":"SUM(C$148:C149)","v":0}]
[null,"8期終了時",{"$f":"'単位修得状況確認表（専門教育科目）'!V$78","v":0},{"$f":"SUM(C$148:C150)","v":0}]
[null,"9期終了時",{"$f":"'単位修得状況確認表（専門教育科目）'!X$78","v":0},{"$f":"IF(SUM($C184:$C$191)=0,\"\",SUM(C$148:C151))","v":""}]
[null,"10期終了時",{"$f":"'単位修得状況確認表（専門教育科目）'!Z$78","v":0},{"$f":"IF(SUM($C185:$C$191)=0,\"\",SUM(C$148:C152))","v":""}]
[null,"11期終了時",{"$f":"'単位修得状況確認表（専門教育科目）'!AB$78","v":0},{"$f":"IF(SUM($C186:$C$191)=0,\"\",SUM(C$148:C153))","v":""}]
[null,"12期終了時",{"$f":"'単位修得状況確認表（専門教育科目）'!AD$78","v":0},{"$f":"IF(SUM($C187:$C$191)=0,\"\",SUM(C$148:C154))","v":""}]
[null,"13期終了時",{"$f":"'単位修得状況確認表（専門教育科目）'!AF$78","v":0},{"$f":"IF(SUM($C188:$C$191)=0,\"\",SUM(C$148:C155))","v":""}]
[null,"14期終了時",{"$f":"'単位修得状況確認表（専門教育科目）'!AH$78","v":0},{"$f":"IF(SUM($C189:$C$191)=0,\"\",SUM(C$148:C156))","v":""}]
[null,"15期終了時",{"$f":"'単位修得状況確認表（専門教育科目）'!AJ$78","v":0},{"$f":"IF(SUM($C190:$C$191)=0,\"\",SUM(C$148:C157))","v":""}]
[null,"16期終了時",{"$f":"'単位修得状況確認表（専門教育科目）'!AL$78","v":0},{"$f":"IF(SUM($C191:$C$191)=0,\"\",SUM(C$148:C158))","v":""}]
[]
[]
[]
[]
[]
[]
[]
[]
[]
[]
[]
[]
[]
[]
[null,"累積単位数"]
[]
[null,null,"取得単位数","累積取得単位数"]
[null,"1期終了時",{"$f":"SUM(C6,E6,C45,E45,C84,C110,C143)","v":0},{"$f":"SUM(C$176:C176)","v":0}]
[null,"2期終了時",0,{"$f":"SUM(C$176:C177)","v":0}]
[null,"3期終了時",0,{"$f":"SUM(C$176:C178)","v":0}]
[null,"4期終了時",0,{"$f":"SUM(C$176:C179)","v":0}]
[null,"5期終了時",0,{"$f":"SUM(C$176:C180)","v":0}]
[null,"6期終了時",0,{"$f":"SUM(C$176:C181)","v":0}]
[null,"7期終了時",0,{"$f":"SUM(C$176:C182)","v":0}]
[null,"8期終了時",0,{"$f":"SUM(C$176:C183)","v":0}]
[null,"9期終了時",0,{"$f":"IF(SUM($C184:$C$191)=0,\"\",SUM(C$176:C184))","v":""}]
[null,"10期終了時",0,{"$f":"IF(SUM($C185:$C$191)=0,\"\",SUM(C$176:C185))","v":""}]
[null,"11期終了時",0,{"$f":"IF(SUM($C186:$C$191)=0,\"\",SUM(C$176:C186))","v":""}]
[null,"12期終了時",0,{"$f":"IF(SUM($C187:$C$191)=0,\"\",SUM(C$176:C187))","v":""}]
[null,"13期終了時",0,{"$f":"IF(SUM($C188:$C$191)=0,\"\",SUM(C$176:C188))","v":""}]
[null,"14期終了時",0,{"$f":"IF(SUM($C189:$C$191)=0,\"\",SUM(C$176:C189))","v":""}]
[null,"15期終了時",0,{"$f":"IF(SUM($C190:$C$191)=0,\"\",SUM(C$176:C190))","v":""}]
[null,"16期終了時",0,{"$f":"IF(SUM($C191:$C$191)=0,\"\",SUM(C$176:C191))","v":""}]
[]
[]
[]
[]
[]
[]
[]
[]
[]
[]
[]
[]
[]
[]
[]
[]
[null,"GPA"]
[]
[null,null,"累積GP","累積GPA","GPA累積単位数","累積P","累積F"]
[null,"1期終了時",{"$f":"'単位修得状況確認表（共通教育科目，一般学生）'!H$22+'単位修得状況確認表（専門教育科目）'!I$80","v":0},{"$f":"IF(E211=0,0,C211/E211)","v":0},{"$f":"D176-F211+G211","v":0},{"$f":"SUM('単位修得状況確認表（共通教育科目，一般学生）'!G$25,'単位修得状況確認表（専門教育科目）'!H84)","v":0},{"$f":"SUM('単位修得状況確認表（共通教育科目，一般学生）'!G$26,'単位修得状況確認表（専門教育科目）'!H$85)-SUM('単位修得状況確認表（共通教育科目，一般学生）'!G$27,'単位修得状況確認表（専門教育科目）'!H$86)","v":0}]
[null,"2期終了時",{"$f":"C211+'単位修得状況確認表（共通教育科目，一般学生）'!J$22+'単位修得状況確認表（専門教育科目）'!K$80","v":0},{"$f":"IF(E212=0,0,C212/E212)","v":0},0,{"$f":"SUM(F211,'単位修得状況確認表（共通教育科目，一般学生）'!I$25,'単位修得状況確認表（専門教育科目）'!J84)","v":0},{"$f":"SUM(G211,'単位修得状況確認表（共通教育科目，一般学生）'!I$26,'単位修得状況確認表（専門教育科目）'!J$85)-SUM('単位修得状況確認表（共通教育科目，一般学生）'!I$27,'単位修得状況確認表（専門教育科目）'!J$86)","v":0}]
[null,"3期終了時",{"$f":"C212+'単位修得状況確認表（共通教育科目，一般学生）'!L$22+'単位修得状況確認表（専門教育科目）'!M$80","v":0},0,0,{"$f":"SUM(F212,'単位修得状況確認表（共通教育科目，一般学生）'!K$25,'単位修得状況確認表（専門教育科目）'!L84)","v":0},{"$f":"SUM(G212,'単位修得状況確認表（共通教育科目，一般学生）'!K$26,'単位修得状況確認表（専門教育科目）'!L$85)-SUM('単位修得状況確認表（共通教育科目，一般学生）'!K$27,'単位修得状況確認表（専門教育科目）'!L$86)","v":0}]
[null,"4期終了時",{"$f":"C213+'単位修得状況確認表（共通教育科目，一般学生）'!N$22+'単位修得状況確認表（専門教育科目）'!O$80","v":0},0,0,{"$f":"SUM(F213,'単位修得状況確認表（共通教育科目，一般学生）'!M$25,'単位修得状況確認表（専門教育科目）'!N84)","v":0},{"$f":"SUM(G213,'単位修得状況確認表（共通教育科目，一般学生）'!M$26,'単位修得状況確認表（専門教育科目）'!N$85)-SUM('単位修得状況確認表（共通教育科目，一般学生）'!M$27,'単位修得状況確認表（専門教育科目）'!N$86)","v":0}]
[null,"5期終了時",{"$f":"C214+'単位修得状況確認表（共通教育科目，一般学生）'!P$22+'単位修得状況確認表（専門教育科目）'!Q$80","v":0},0,0,{"$f":"SUM(F214,'単位修得状況確認表（共通教育科目，一般学生）'!O$25,'単位修得状況確認表（専門教育科目）'!P84)","v":0},{"$f":"SUM(G214,'単位修得状況確認表（共通教育科目，一般学生）'!O$26,'単位修得状況確認表（専門教育科目）'!P$85)-SUM('単位修得状況確認表（共通教育科目，一般学生）'!O$27,'単位修得状況確認表（専門教育科目）'!P$86)","v":0}]
[null,"6期終了時",{"$f":"C215+'単位修得状況確認表（共通教育科目，一般学生）'!R$22+'単位修得状況確認表（専門教育科目）'!S$80","v":0},0,0,{"$f":"SUM(F215,'単位修得状況確認表（共通教育科目，一般学生）'!Q$25,'単位修得状況確認表（専門教育科目）'!R84)","v":0},{"$f":"SUM(G215,'単位修得状況確認表（共通教育科目，一般学生）'!Q$26,'単位修得状況確認表（専門教育科目）'!R$85)-SUM('単位修得状況確認表（共通教育科目，一般学生）'!Q$27,'単位修得状況確認表（専門教育科目）'!R$86)","v":0}]
[null,"7期終了時",{"$f":"C216+'単位修得状況確認表（共通教育科目，一般学生）'!T$22+'単位修得状況確認表（専門教育科目）'!U$80","v":0},0,0,{"$f":"SUM(F216,'単位修得状況確認表（共通教育科目，一般学生）'!S$25,'単位修得状況確認表（専門教育科目）'!T84)","v":0},{"$f":"SUM(G216,'単位修得状況確認表（共通教育科目，一般学生）'!S$26,'単位修得状況確認表（専門教育科目）'!T$85)-SUM('単位修得状況確認表（共通教育科目，一般学生）'!S$27,'単位修得状況確認表（専門教育科目）'!T$86)","v":0}]
[null,"8期終了時",{"$f":"C217+'単位修得状況確認表（共通教育科目，一般学生）'!V$22+'単位修得状況確認表（専門教育科目）'!W$80","v":0},0,0,{"$f":"SUM(F217,'単位修得状況確認表（共通教育科目，一般学生）'!U$25,'単位修得状況確認表（専門教育科目）'!V84)","v":0},{"$f":"SUM(G217,'単位修得状況確認表（共通教育科目，一般学生）'!U$26,'単位修得状況確認表（専門教育科目）'!V$85)-SUM('単位修得状況確認表（共通教育科目，一般学生）'!U$27,'単位修得状況確認表（専門教育科目）'!V$86)","v":0}]
[null,"9期終了時",{"$f":"C218+'単位修得状況確認表（共通教育科目，一般学生）'!X$22+'単位修得状況確認表（専門教育科目）'!Y$80","v":0},{"$f":"IF(E219=\"\",\"\",IF(E219=0,0,C219/E219))","v":""},{"$f":"IF(D184=\"\",\"\",D184-F219+G219)","v":""},{"$f":"SUM(F218,'単位修得状況確認表（共通教育科目，一般学生）'!W$25,'単位修得状況確認表（専門教育科目）'!X84)","v":0},{"$f":"SUM(G218,'単位修得状況確認表（共通教育科目，一般学生）'!W$26,'単位修得状況確認表（専門教育科目）'!X$85)-SUM('単位修得状況確認表（共通教育科目，一般学生）'!W$27,'単位修得状況確認表（専門教育科目）'!X$86)","v":0}]
[null,"10期終了時",{"$f":"C219+'単位修得状況確認表（共通教育科目，一般学生）'!Z$22+'単位修得状況確認表（専門教育科目）'!AA$80","v":0},{"$f":"IF(E220=\"\",\"\",IF(E220=0,0,C220/E220))","v":""},{"$f":"IF(D185=\"\",\"\",D185-F220+G220)","v":""},{"$f":"SUM(F219,'単位修得状況確認表（共通教育科目，一般学生）'!Y$25,'単位修得状況確認表（専門教育科目）'!Z84)","v":0},{"$f":"SUM(G219,'単位修得状況確認表（共通教育科目，一般学生）'!Y$26,'単位修得状況確認表（専門教育科目）'!Z$85)-SUM('単位修得状況確認表（共通教育科目，一般学生）'!Y$27,'単位修得状況確認表（専門教育科目）'!Z$86)","v":0}]
[null,"11期終了時",{"$f":"C220+'単位修得状況確認表（共通教育科目，一般学生）'!AB$22+'単位修得状況確認表（専門教育科目）'!AC$80","v":0},"","",{"$f":"SUM(F220,'単位修得状況確認表（共通教育科目，一般学生）'!AA$25,'単位修得状況確認表（専門教育科目）'!AB84)","v":0},{"$f":"SUM(G220,'単位修得状況確認表（共通教育科目，一般学生）'!AA$26,'単位修得状況確認表（専門教育科目）'!AB$85)-SUM('単位修得状況確認表（共通教育科目，一般学生）'!AA$27,'単位修得状況確認表（専門教育科目）'!AB$86)","v":0}]
[null,"12期終了時",{"$f":"C221+'単位修得状況確認表（共通教育科目，一般学生）'!AD$22+'単位修得状況確認表（専門教育科目）'!AE$80","v":0},{"$f":"IF(E222=\"\",\"\",IF(E222=0,0,C222/E222))","v":""},"",{"$f":"SUM(F221,'単位修得状況確認表（共通教育科目，一般学生）'!AC$25,'単位修得状況確認表（専門教育科目）'!AD84)","v":0},{"$f":"SUM(G221,'単位修得状況確認表（共通教育科目，一般学生）'!AC$26,'単位修得状況確認表（専門教育科目）'!AD$85)-SUM('単位修得状況確認表（共通教育科目，一般学生）'!AC$27,'単位修得状況確認表（専門教育科目）'!AD$86)","v":0}]
[null,"13期終了時",{"$f":"C222+'単位修得状況確認表（共通教育科目，一般学生）'!AF$22+'単位修得状況確認表（専門教育科目）'!AG$80","v":0},"","",{"$f":"SUM(F222,'単位修得状況確認表（共通教育科目，一般学生）'!AE$25,'単位修得状況確認表（専門教育科目）'!AF84)","v":0},{"$f":"SUM(G222,'単位修得状況確認表（共通教育科目，一般学生）'!AE$26,'単位修得状況確認表（専門教育科目）'!AF$85)-SUM('単位修得状況確認表（共通教育科目，一般学生）'!AE$27,'単位修得状況確認表（専門教育科目）'!AF$86)","v":0}]
[null,"14期終了時",{"$f":"C223+'単位修得状況確認表（共通教育科目，一般学生）'!AH$22+'単位修得状況確認表（専門教育科目）'!AI$80","v":0},"","",{"$f":"SUM(F223,'単位修得状況確認表（共通教育科目，一般学生）'!AG$25,'単位修得状況確認表（専門教育科目）'!AH84)","v":0},{"$f":"SUM(G223,'単位修得状況確認表（共通教育科目，一般学生）'!AG$26,'単位修得状況確認表（専門教育科目）'!AH$85)-SUM('単位修得状況確認表（共通教育科目，一般学生）'!AG$27,'単位修得状況確認表（専門教育科目）'!AH$86)","v":0}]
[null,"15期終了時",{"$f":"C224+'単位修得状況確認表（共通教育科目，一般学生）'!AJ$22+'単位修得状況確認表（専門教育科目）'!AK$80","v":0},"","",{"$f":"SUM(F224,'単位修得状況確認表（共通教育科目，一般学生）'!AI$25,'単位修得状況確認表（専門教育科目）'!AJ84)","v":0},{"$f":"SUM(G224,'単位修得状況確認表（共通教育科目，一般学生）'!AI$26,'単位修得状況確認表（専門教育科目）'!AJ$85)-SUM('単位修得状況確認表（共通教育科目，一般学生）'!AI$27,'単位修得状況確認表（専門教育科目）'!AJ$86)","v":0}]
[null,"16期終了時",{"$f":"C225+'単位修得状況確認表（共通教育科目，一般学生）'!AL$22+'単位修得状況確認表（専門教育科目）'!AM$80","v":0},"",{"$f":"IF(D191=\"\",\"\",D191-F226+G226)","v":""},{"$f":"SUM(F225,'単位修得状況確認表（共通教育科目，一般学生）'!AK$25,'単位修得状況確認表（専門教育科目）'!AL84)","v":0},{"$f":"SUM(G225,'単位修得状況確認表（共通教育科目，一般学生）'!AK$26,'単位修得状況確認表（専門教育科目）'!AL$85)-SUM('単位修得状況確認表（共通教育科目，一般学生）'!AK$27,'単位修得状況確認表（専門教育科目）'!AL$86)","v":0}]